fUSD/lending_fUSD_20260217
["ID","MTS","AMOUNT","RATE_DAILY","PERIOD"]
[405860358,1771367445025,-355.76,0.00012965,2]
[405860359,1771367445035,-5623.26156693,0.00013,2]
[405860360,1771367445044,-275.59,0.00013042,2]
[405860361,1771367445055,-5362.79805645,0.0001305,2]
[405860362,1771367445065,-500.0,0.00013058,2]
[405860363,1771367445075,-2258.0,0.0001309,2]
[405860364,1771367445086,-9035.0,0.0001309,2]
[405860365,1771367445097,-166.66,0.00013099,2]
[405860366,1771367445108,-49398.65267979,0.0001312,2]
[405860367,1771367445118,-623.71743587,0.00013268,2]
[405860368,1771367445128,-1500.0,0.00013268,2]
[405860369,1771367445139,-806.86059886,0.00013268,2]
[405860370,1771367445149,-616.56100589,0.00013268,2]
[405860371,1771367445159,-1500.0,0.00013268,2]
[405860372,1771367445170,-344.71223806,0.00013268,2]
[405860373,1771367445180,-1500.0,0.00013268,2]
[405860374,1771367445191,-1500.0,0.00013268,2]
[405860375,1771367445202,-1500.0,0.00013268,2]
[405860376,1771367445213,-1513.76878479,0.00013268,2]
[405860377,1771367445223,-1500.0,0.00013268,2]
[405860378,1771367445234,-3620.0,0.0001333,2]
[405860379,1771367445244,-500.0,0.00013332,2]
[405860380,1771367445255,-160.0,0.00013335,2]
[405860381,1771367445265,-173.57638878,0.00013335,2]
[405860382,1771367445275,-166.66,0.00013358,2]
[405860383,1771367445286,-151.0,0.00013452,4]
[405860384,1771367445296,-1000.0,0.000135,2]
[405860385,1771367445307,-275.59,0.00013544,2]
[405860386,1771367445318,-500.0,0.00013605,2]
[405860387,1771367445328,-166.66,0.00013618,2]
[405860388,1771367445339,-1013.23,0.00013698,2]
[405860389,1771367445350,-1013.23,0.00013698,2]
[405860390,1771367445360,-1013.23,0.00013698,2]
[405860391,1771367445371,-1013.23,0.00013698,2]
[405860392,1771367445383,-1013.23,0.00013698,2]
[405860393,1771367445393,-1013.23,0.00013698,2]
[405860394,1771367445404,-1013.23,0.00013698,2]
[405860395,1771367445414,-1013.23,0.00013698,2]
[405860396,1771367445424,-1013.23,0.00013698,2]
[405860397,1771367445434,-1013.23,0.00013698,2]
[405860398,1771367445444,-1013.23,0.00013698,2]
[405860399,1771367445454,-1013.23,0.00013698,2]
[405860400,1771367445464,-1013.23,0.00013698,2]
[405860401,1771367445474,-1013.23,0.00013698,2]
[405860402,1771367445484,-1013.23,0.00013698,2]
[405860403,1771367445494,-500.0,0.00013698,2]
[405860404,1771367445645,-500.0,0.00013698,2]
[405860405,1771367445655,-500.0,0.00013698,2]
[405860406,1771367445665,-500.0,0.00013698,2]
[405860407,1771367445675,-500.0,0.00013698,2]
[405860408,1771367445684,-536.56841648,0.00013698,2]
[405860409,1771367445694,-546.97,0.00013698,2]
[405860410,1771367445704,-546.97,0.00013698,2]
[405860411,1771367445713,-546.97,0.00013698,2]
[405860412,1771367445723,-546.97,0.00013698,2]
[405860413,1771367445732,-546.97,0.00013698,2]
[405860414,1771367445742,-546.97,0.00013698,2]
[405860415,1771367445751,-546.97,0.00013698,2]
[405860416,1771367445760,-546.97,0.00013698,2]
[405860417,1771367445769,-546.97,0.00013698,2]
[405860418,1771367445779,-546.97,0.00013698,2]
[405860419,1771367445789,-546.97,0.00013698,2]
[405860420,1771367445798,-546.97,0.00013698,2]
[405860421,1771367445807,-546.97,0.00013698,2]
[405860422,1771367445817,-546.97,0.00013698,2]
[405860423,1771367445826,-546.97,0.00013698,2]
[405860424,1771367445835,-500.0,0.00013698,2]
[405860425,1771367445845,-500.0,0.00013698,2]
[405860426,1771367445854,-500.0,0.00013698,2]
[405860427,1771367445864,-500.0,0.00013698,2]
[405860428,1771367445874,-500.0,0.00013698,2]
[405860429,1771367445883,-500.0,0.00013698,2]
[405860430,1771367445893,-500.0,0.00013698,2]
[405860431,1771367445903,-500.0,0.00013698,2]
[405860432,1771367445912,-500.0,0.00013698,2]
[405860433,1771367445921,-500.0,0.00013698,2]
[405860434,1771367445931,-500.0,0.00013698,2]
[405860435,1771367445941,-500.0,0.00013698,2]
[405860436,1771367445950,-500.0,0.00013698,2]
[405860437,1771367445960,-500.0,0.00013698,2]
[405860438,1771367445969,-500.0,0.00013698,2]
[405860439,1771367445978,-1479.1,0.00013698,2]
[405860440,1771367445988,-1479.1,0.00013698,2]
[405860441,1771367445997,-1479.1,0.00013698,2]
[405860442,1771367446007,-1479.1,0.00013698,2]
[405860443,1771367446017,-1479.1,0.00013698,2]
[405860444,1771367446027,-1479.1,0.00013698,2]
[405860445,1771367446036,-1479.1,0.00013698,2]
[405860446,1771367446046,-1479.1,0.00013698,2]
[405860447,1771367446055,-1479.1,0.00013698,2]
[405860448,1771367446065,-1479.1,0.00013698,2]
[405860449,1771367446074,-1479.1,0.00013698,2]
[405860450,1771367446084,-1479.1,0.00013698,2]
[405860451,1771367446093,-1479.1,0.00013698,2]
[405860452,1771367446103,-1479.1,0.00013698,2]
[405860453,1771367446112,-1479.1,0.00013698,2]
[405860454,1771367446122,-500.0,0.00013698,2]
[405860455,1771367446131,-500.0,0.00013698,2]
[405860456,1771367446141,-500.0,0.00013698,2]
[405860457,1771367446150,-500.0,0.00013698,2]
[405860458,1771367446159,-500.0,0.00013698,2]
[405860459,1771367446169,-500.0,0.00013698,2]
[405860460,1771367446178,-500.0,0.00013698,2]
[405860461,1771367446188,-500.0,0.00013698,2]
[405860462,1771367446197,-500.0,0.00013698,2]
[405860463,1771367446207,-500.0,0.00013698,2]
[405860464,1771367446216,-500.0,0.00013698,2]
[405860465,1771367446226,-500.0,0.00013698,2]
[405860466,1771367446235,-200.92210999,0.00013698,2]
[405860467,1771367446244,-172.09485914,0.00013698,2]
[405860468,1771367446253,-1546.47,0.00013698,2]
[405860469,1771367446263,-1546.47,0.00013698,2]
[405860470,1771367446272,-1546.47,0.00013698,2]
[405860471,1771367446281,-1546.47,0.00013698,2]
[405860472,1771367446290,-1546.47,0.00013698,2]
[405860473,1771367446300,-1546.47,0.00013698,2]
[405860474,1771367446310,-1546.47,0.00013698,2]
[405860475,1771367446320,-1546.47,0.00013698,2]
[405860476,1771367446329,-1546.47,0.00013698,2]
[405860477,1771367446338,-1546.47,0.00013698,2]
[405860478,1771367446348,-1546.47,0.00013698,2]
[405860479,1771367446357,-1546.47,0.00013698,2]
[405860480,1771367446367,-1546.47,0.00013698,2]
[405860481,1771367446377,-1546.47,0.00013698,2]
[405860482,1771367446389,-1546.47,0.00013698,2]
[405860483,1771367446399,-649.58,0.00013698,2]
[405860484,1771367446409,-649.58,0.00013698,2]
[405860485,1771367446419,-649.58,0.00013698,2]
[405860486,1771367446429,-500.0,0.00013698,2]
[405860487,1771367446438,-649.58,0.00013698,2]
[405860488,1771367446449,-500.0,0.00013698,2]
[405860489,1771367446460,-649.58,0.00013698,2]
[405860490,1771367446469,-500.0,0.00013698,2]
[405860491,1771367446478,-649.58,0.00013698,2]
[405860492,1771367446488,-500.0,0.00013698,2]
[405860493,1771367446497,-649.58,0.00013698,2]
[405860494,1771367446507,-500.0,0.00013698,2]
[405860495,1771367446517,-649.58,0.00013698,2]
[405860496,1771367446526,-494.24526323,0.00013698,2]
[405860497,1771367446536,-649.58,0.00013698,2]
[405860498,1771367446545,-649.58,0.00013698,2]
[405860499,1771367446555,-649.58,0.00013698,2]
[405860500,1771367446565,-649.58,0.00013698,2]
[405860501,1771367446575,-649.58,0.00013698,2]
[405860502,1771367446585,-649.58,0.00013698,2]
[405860503,1771367446595,-649.58,0.00013698,2]
[405860504,1771367446604,-516.5,0.00013698,2]
[405860505,1771367446613,-516.5,0.00013698,2]
[405860506,1771367446623,-516.5,0.00013698,2]
[405860507,1771367446632,-516.5,0.00013698,2]
[405860508,1771367446643,-516.5,0.00013698,2]
[405860509,1771367446652,-516.5,0.00013698,2]
[405860510,1771367446662,-516.5,0.00013698,2]
[405860511,1771367446671,-516.5,0.00013698,2]
[405860512,1771367446681,-516.5,0.00013698,2]
[405860513,1771367446691,-516.5,0.00013698,2]
[405860514,1771367446700,-516.5,0.00013698,2]
[405860515,1771367446710,-516.5,0.00013698,2]
[405860516,1771367446719,-516.5,0.00013698,2]
[405860517,1771367446729,-516.5,0.00013698,2]
[405860518,1771367446738,-516.5,0.00013698,2]
[405860519,1771367446748,-1180.75,0.00013698,2]
[405860520,1771367446757,-1180.75,0.00013698,2]
[405860521,1771367446767,-1180.75,0.00013698,2]
[405860522,1771367446776,-1180.75,0.00013698,2]
[405860523,1771367446786,-1180.75,0.00013698,2]
[405860524,1771367446795,-1180.75,0.00013698,2]
[405860525,1771367446805,-1180.75,0.00013698,2]
[405860526,1771367446814,-1180.75,0.00013698,2]
[405860527,1771367446824,-1180.75,0.00013698,2]
[405860528,1771367446833,-1180.75,0.00013698,2]
[405860529,1771367446843,-1180.75,0.00013698,2]
[405860530,1771367446852,-1180.75,0.00013698,2]
[405860531,1771367446862,-1180.75,0.00013698,2]
[405860532,1771367446871,-1180.75,0.00013698,2]
[405860533,1771367446880,-1180.75,0.00013698,2]
[405860534,1771367446890,-500.0,0.00013698,2]
[405860535,1771367446899,-500.0,0.00013698,2]
[405860536,1771367446908,-500.0,0.00013698,2]
[405860537,1771367446918,-191.17661539,0.00013698,2]
[405860538,1771367446927,-500.0,0.00013698,2]
[405860539,1771367446937,-500.0,0.00013698,2]
[405860540,1771367446948,-500.0,0.00013698,2]
[405860541,1771367446958,-500.0,0.00013698,2]
[405860542,1771367446968,-500.0,0.00013698,2]
[405860543,1771367446977,-500.0,0.00013698,2]
[405860544,1771367446987,-500.0,0.00013698,2]
[405860545,1771367446997,-500.0,0.00013698,2]
[405860546,1771367447007,-500.0,0.00013698,2]
[405860547,1771367447017,-500.0,0.00013698,2]
[405860548,1771367447026,-500.0,0.00013698,2]
[405860549,1771367447035,-307.56,0.00013698,2]
[405860550,1771367447045,-500.0,0.00013698,2]
[405860551,1771367447054,-500.0,0.00013698,2]
[405860552,1771367447064,-500.0,0.00013698,2]
[405860553,1771367447074,-505.58518338,0.00013698,2]
[405860554,1771367447083,-500.0,0.00013698,2]
[405860555,1771367447093,-500.0,0.00013698,2]
[405860556,1771367447106,-500.0,0.00013698,2]
[405860557,1771367447116,-500.0,0.00013698,2]
[405860558,1771367447125,-500.0,0.00013698,2]
[405860559,1771367447136,-500.0,0.00013698,2]
[405860560,1771367447147,-500.0,0.00013698,2]
[405860561,1771367447157,-500.0,0.00013698,2]
[405860562,1771367447168,-500.0,0.00013698,2]
[405860563,1771367447179,-500.0,0.00013698,2]
[405860564,1771367447189,-500.0,0.00013698,2]
[405860565,1771367447198,-500.0,0.00013698,2]
[405860566,1771367447208,-600.82615766,0.00013698,2]
[405860567,1771367447218,-500.0,0.00013698,2]
[405860568,1771367447227,-500.0,0.00013698,2]
[405860569,1771367447238,-500.0,0.00013698,2]
[405860570,1771367447247,-500.0,0.00013698,2]
[405860571,1771367447257,-474.03942024,0.00013698,2]
[405860572,1771367447266,-2052.7,0.00013698,2]
[405860573,1771367447276,-2052.7,0.00013698,2]
[405860574,1771367447286,-2052.7,0.00013698,2]
[405860575,1771367447295,-2052.7,0.00013698,2]
[405860576,1771367447305,-2052.7,0.00013698,2]
[405860577,1771367447315,-2052.7,0.00013698,2]
[405860578,1771367447324,-2052.7,0.00013698,2]
[405860579,1771367447334,-2052.7,0.00013698,2]
[405860580,1771367447344,-2052.7,0.00013698,2]
[405860581,1771367447353,-2052.7,0.00013698,2]
[405860582,1771367447363,-2052.7,0.00013698,2]
[405860583,1771367447373,-2052.7,0.00013698,2]
[405860584,1771367447388,-2052.7,0.00013698,2]
[405860585,1771367447399,-2052.7,0.00013698,2]
[405860586,1771367447409,-2052.7,0.00013698,2]
[405860587,1771367447419,-528.4390448,0.00013698,2]
[405860588,1771367447429,-500.0,0.00013698,2]
[405860589,1771367447439,-500.0,0.00013698,2]
[405860590,1771367447449,-500.0,0.00013698,2]
[405860591,1771367447458,-500.0,0.00013698,2]
[405860592,1771367447467,-586.00467181,0.00013698,2]
[405860593,1771367447477,-500.0,0.00013698,2]
[405860594,1771367447486,-500.0,0.00013698,2]
[405860595,1771367447496,-500.0,0.00013698,2]
[405860596,1771367447505,-500.0,0.00013698,2]
[405860597,1771367447515,-500.0,0.00013698,2]
[405860598,1771367447524,-321.35543779,0.00013698,2]
[405860599,1771367447534,-200.0,0.00013699,2]
[405860600,1771367447543,-151.02878078,0.00013699,2]
[405860601,1771367447552,-214297.0,0.000137,2]
[405860602,1771367447563,-11012.27,0.000137,2]
[405860603,1771367447572,-11012.27,0.000137,2]
[405860604,1771367447582,-49398.65267979,0.00013773,2]
[405860605,1771367447591,-649.58,0.00013816,2]
[405860606,1771367447601,-1180.75,0.00013816,2]
[405860607,1771367447612,-2052.7,0.00013816,2]
[405860608,1771367447621,-2000.0,0.00013816,2]
[405860609,1771367447630,-503.8182606,0.00013816,2]
[405860610,1771367447640,-2000.0,0.00013816,2]
[405860611,1771367447650,-2000.0,0.00013816,2]
[405860612,1771367447660,-2000.0,0.00013816,2]
[405860613,1771367447670,-2000.0,0.00013816,2]
[405860614,1771367447679,-500.0,0.00013873,2]
[405860615,1771367447688,-500.0,0.00013873,2]
[405860616,1771367447698,-500.0,0.00013873,2]
[405860617,1771367447707,-335.00019172,0.00013873,2]
[405860618,1771367447716,-500.0,0.00013873,2]
[405860619,1771367447726,-500.0,0.00013873,2]
[405860620,1771367447735,-500.0,0.00013873,2]
[405860621,1771367447745,-500.0,0.00013873,2]
[405860622,1771367447755,-500.0,0.00013873,2]
[405860623,1771367447764,-500.0,0.00013873,2]
[405860624,1771367447774,-500.0,0.00013873,2]
[405860625,1771367447783,-500.0,0.00013873,2]
[405860626,1771367447793,-500.0,0.00013873,2]
[405860627,1771367447803,-500.0,0.00013873,2]
[405860628,1771367447813,-161.95965132,0.00013873,2]
[405860629,1771367447823,-500.0,0.00013873,2]
[405860630,1771367447833,-501.23450591,0.00013873,2]
[405860631,1771367447843,-500.0,0.00013873,2]
[405860632,1771367447853,-500.0,0.00013873,2]
[405860633,1771367447863,-500.0,0.00013873,2]
[405860634,1771367447872,-500.0,0.00013873,2]
[405860635,1771367447882,-163.87964352,0.00013873,2]
[405860636,1771367447892,-500.0,0.00013873,2]
[405860637,1771367447902,-500.0,0.00013873,2]
[405860638,1771367447911,-500.0,0.00013873,2]
[405860639,1771367447921,-501.14207764,0.00013873,2]
[405860640,1771367447930,-500.0,0.00013873,2]
[405860641,1771367447940,-436.04334629,0.00013873,2]
[405860642,1771367447957,-500.0,0.00013873,2]
[405860643,1771367447971,-500.93096914,0.00013873,2]
[405860644,1771367447981,-500.0,0.00013873,2]
[405860645,1771367447991,-160.29464371,0.00013873,2]
[405860646,1771367448001,-500.0,0.00013873,2]
[405860647,1771367448011,-561.11210647,0.00013873,2]
[405860648,1771367448022,-500.0,0.00013873,2]
[405860649,1771367448032,-523.64780308,0.00013873,2]
[405860650,1771367448041,-500.0,0.00013873,2]
[405860651,1771367448051,-569.45122683,0.00013873,2]
[405860652,1771367448061,-162.40112722,0.00013873,2]
[405860653,1771367448071,-500.0,0.00013873,2]
[405860654,1771367448081,-500.0,0.00013873,2]
[405860655,1771367448091,-525.66819458,0.00013873,2]
[405860656,1771367448103,-161.87499248,0.00013873,2]
[405860657,1771367448113,-500.0,0.00013873,2]
[405860658,1771367448123,-505.14943602,0.00013873,2]
[405860659,1771367448133,-500.0,0.00013873,2]
[405860660,1771367448143,-160.44342054,0.00013873,2]
[405860661,1771367448153,-514.27467488,0.00013873,2]
[405860662,1771367448164,-161.02829907,0.00013873,2]
[405860663,1771367448174,-500.0,0.00013873,2]
[405860664,1771367448184,-500.0,0.00013873,2]
[405860665,1771367448195,-501.43225284,0.00013873,2]
[405860666,1771367448205,-170.20434449,0.00013873,2]
[405860667,1771367448215,-500.0,0.00013873,2]
[405860668,1771367448225,-503.17452108,0.00013873,2]
[405860669,1771367448236,-500.0,0.00013873,2]
[405860670,1771367448246,-550.905089,0.00013873,2]
[405860671,1771367448257,-377.76526068,0.00013873,2]
[405860672,1771367448267,-597.93872342,0.00013873,2]
[405860673,1771367448277,-500.0,0.00013879,2]
[405860674,1771367448287,-389.0,0.00013999,2]
[405860675,1771367448297,-1500.0,0.00014,2]
[405860676,1771367448307,-500.0,0.00014153,2]
[405860677,1771367448317,-5530.0,0.000142,3]
[405860678,1771367448328,-2500.0,0.00014364,2]
[405860679,1771367448338,-2500.0,0.00014364,2]
[405860680,1771367448350,-1464.93718194,0.00014364,2]
[405860681,1771367448360,-2500.0,0.00014364,2]
[405860682,1771367448370,-2500.0,0.00014364,2]
[405860683,1771367448383,-10349.13153648,0.0001439,2]
[405860684,1771367448393,-3162.0,0.00014399,2]
[405860685,1771367448403,-12649.0,0.00014399,2]
[405860686,1771367448413,-1000.0,0.00014421,2]
[405860687,1771367448423,-502.22718587,0.00014421,2]
[405860688,1771367448433,-1001.35605949,0.00014421,2]
[405860689,1771367448443,-504.09468333,0.00014421,2]
[405860690,1771367448455,-1000.0,0.00014421,2]
[405860691,1771367448464,-1000.0,0.00014421,2]
[405860692,1771367448474,-1000.0,0.00014421,2]
[405860693,1771367448484,-1000.0,0.00014421,2]
[405860694,1771367448494,-1009.85751715,0.00014421,2]
[405860695,1771367448504,-501.86536618,0.00014421,2]
[405860696,1771367448514,-1000.0,0.00014421,2]
[405860697,1771367448524,-565.44208777,0.00014421,2]
[405860698,1771367448534,-651.60051968,0.00014421,2]
[405860699,1771367448544,-1000.0,0.00014421,2]
[405860700,1771367448554,-1002.86775924,0.00014421,2]
[405860701,1771367448564,-504.64635869,0.00014421,2]
[405860702,1771367448574,-1000.0,0.00014421,2]
[405860703,1771367448584,-1000.0,0.00014421,2]
[405860704,1771367448594,-502.68727614,0.00014421,2]
[405860705,1771367448604,-1000.0,0.00014421,2]
[405860706,1771367448614,-1000.0,0.00014421,2]
[405860707,1771367448624,-1000.0,0.00014421,2]
[405860708,1771367448635,-1000.0,0.00014421,2]
[405860709,1771367448645,-1000.0,0.00014421,2]
[405860710,1771367448655,-1000.0,0.00014421,2]
[405860711,1771367448665,-1009.6821238,0.00014421,2]
[405860712,1771367448676,-1000.0,0.00014421,2]
[405860713,1771367448687,-1000.0,0.00014421,2]
[405860714,1771367448697,-1000.0,0.00014421,2]
[405860715,1771367448707,-502.80271569,0.00014421,2]
[405860716,1771367448718,-1000.0,0.00014421,2]
[405860717,1771367448728,-895.81638304,0.00014421,2]
[405860718,1771367448738,-1000.0,0.00014421,2]
[405860719,1771367448748,-500.0,0.00014427,2]
[405860720,1771367448759,-5203.0,0.00014661,2]
[405860721,1771367448770,-1177.46,0.00014691,2]
[405860722,1771367448780,-5530.0,0.000147,5]
[405860723,1771367448791,-500.0,0.00014701,2]
[405860724,1771367448801,-468.51,0.00014718,2]
[405860725,1771367448812,-389.0,0.0001488,2]
[405860726,1771367448822,-215.37,0.00014893,2]
[405860727,1771367448831,-355.76,0.00014894,2]
[405860728,1771367448841,-176.05451457,0.000149,2]
[405860729,1771367448851,-176.05451457,0.000149,2]
[405860730,1771367448861,-3000.0,0.00014912,2]
[405860731,1771367448872,-3000.0,0.00014912,2]
[405860732,1771367448882,-1360.79622624,0.00014912,2]
[405860733,1771367448892,-2453.91707801,0.00014912,2]
[405860734,1771367448902,-1500.0,0.00014968,2]
[405860735,1771367448912,-1000.0,0.00014968,2]
[405860736,1771367448923,-1500.0,0.00014968,2]
[405860737,1771367448933,-504.47861685,0.00014968,2]
[405860738,1771367448946,-1500.0,0.00014968,2]
[405860739,1771367448957,-1500.0,0.00014968,2]
[405860740,1771367448968,-1097.87159044,0.00014968,2]
[405860741,1771367448979,-1500.0,0.00014968,2]
[405860742,1771367448989,-395.07222913,0.00014968,2]
[405860743,1771367448999,-1000.0,0.00014968,2]
[405860744,1771367449011,-1512.37454404,0.00014968,2]
[405860745,1771367449021,-1597.03636758,0.00014968,2]
[405860746,1771367449032,-1500.0,0.00014968,2]
[405860747,1771367449042,-1500.0,0.00014968,2]
[405860748,1771367449052,-501.69367829,0.00014968,2]
[405860749,1771367449062,-715.83370402,0.00014968,2]
[405860750,1771367449072,-1500.0,0.00014968,2]
[405860751,1771367449083,-1500.0,0.00014968,2]
[405860752,1771367449094,-1500.0,0.00014968,2]
[405860753,1771367449104,-1500.0,0.00014968,2]
[405860754,1771367449116,-500.0,0.00014975,2]
[405860755,1771367449127,-250.0,0.00015,2]
[405860756,1771367449137,-212.8649804,0.00015,5]
[405860757,1771367449148,-2055.50045313,0.00015,2]
[405860758,1771367449158,-8002.23365242,0.00015,2]
[405860759,1771367449168,-151.76907395,0.00015,2]
[405860760,1771367449183,-900.0,0.00015068,2]
[405860761,1771367449194,-3936.54,0.00015089,2]
[405860762,1771367449205,-500.0,0.00015239,2]
[405860763,1771367449216,-594.05284132,0.00015249,2]
[405860764,1771367449227,-1517.64,0.000153,2]
[405860765,1771367449238,-509.61038486,0.000154,2]
[405860766,1771367449249,-3500.0,0.0001546,2]
[405860767,1771367449259,-3500.0,0.0001546,2]
[405860768,1771367449270,-500.0,0.00015516,2]
[405860769,1771367449280,-2000.0,0.00015516,2]
[405860770,1771367449292,-2000.0,0.00015516,2]
[405860771,1771367449302,-360.43974274,0.00015516,2]
[405860772,1771367449314,-1120.78233815,0.00015516,2]
[405860773,1771367449325,-1508.47777759,0.00015516,2]
[405860774,1771367449335,-386.21895781,0.00015516,2]
[405860775,1771367449346,-2000.0,0.00015516,2]
[405860776,1771367449362,-2000.0,0.00015516,2]
[405860777,1771367449373,-158.35387756,0.00015516,2]
[405860778,1771367449385,-2000.0,0.00015516,2]
[405860779,1771367449396,-286.59561092,0.00015713,7]
[405860780,1771367449406,-2245.73805852,0.00015807,2]
[405860781,1771367449416,-4145.0,0.00015839,2]
[405860782,1771367449426,-7366.0,0.00015839,2]
[405860783,1771367449437,-173.0767049,0.00015895,2]
[405860784,1771367449447,-404.497183,0.0001596,7]
[405860785,1771367449457,-5000.0,0.0001596,2]
[405860786,1771367449468,-418.83903334,0.00016,2]
[405860787,1771367449478,-276.734435,0.00016,2]
[405860788,1771367449488,-173.57638878,0.00016,3]
[405860789,1771367449499,-1494.73225771,0.00016008,2]
[405860790,1771367449509,-857.65528936,0.00016008,2]
[405860791,1771367449519,-2500.0,0.00016064,2]
[405860792,1771367449529,-1007.7222609,0.00016064,2]
[405860793,1771367449539,-960.3517219,0.00016064,2]
[405860794,1771367449550,-1787.66016397,0.00016064,2]
[405860795,1771367449560,-2500.0,0.00016064,2]
[405860796,1771367449570,-2000.0,0.00016082,2]
[405860797,1771367449580,-9999.99,0.00016116,2]
[405860798,1771367449590,-389.0,0.00016174,2]
[405860799,1771367449600,-1000.0,0.0001618,7]
[405860800,1771367449611,-150.0,0.000162,2]
[405860801,1771367449622,-378.97935123,0.00016244,2]
[405860802,1771367449633,-200.0,0.0001634,2]
[405860803,1771367449643,-15296.93137855,0.00016352,2]
[405860804,1771367449653,-500.0,0.00016356,2]
[405860805,1771367449663,-500.0,0.00016356,2]
[405860806,1771367449673,-160.0,0.000164,2]
[405860807,1771367449684,-842.0,0.000164,2]
[405860808,1771367449694,-2789.9,0.00016438,2]
[405860809,1771367449704,-887.51,0.00016438,2]
[405860810,1771367449714,-2378.0,0.00016438,2]
[405860811,1771367449725,-151.02975848,0.00016438,2]
[405860812,1771367449736,-900.0,0.00016438,2]
[405860813,1771367449746,-2378.0,0.00016493,2]
[405860814,1771367449756,-150.0,0.000165,2]
[405860815,1771367449766,-2000.0,0.000165,2]
[405860816,1771367449778,-2378.0,0.00016548,2]
[405860817,1771367449788,-1088.37215301,0.00016576,2]
[405860818,1771367449798,-473.31058807,0.00016576,2]
[405860819,1771367449808,-361.51972399,0.000166,2]
[405860820,1771367449818,-2378.0,0.00016602,2]
[405860821,1771367449828,-649.58,0.00016612,2]
[405860822,1771367449839,-1180.75,0.00016612,2]
[405860823,1771367449850,-2052.7,0.00016612,2]
[405860824,1771367449860,-1035.74923491,0.00016612,2]
[405860825,1771367449871,-457.49810709,0.00016612,2]
[405860826,1771367449881,-2378.0,0.00016657,2]
[405860827,1771367449891,-312.34,0.00016685,2]
[405860828,1771367449902,-2378.0,0.00016712,2]
[405860829,1771367449912,-199.23,0.00016712,2]
[405860830,1771367449922,-2378.0,0.00016767,2]
[405860831,1771367449932,-312.34,0.00016767,2]
[405860832,1771367449942,-150.0,0.000168,2]
[405860833,1771367449952,-2378.0,0.00016822,2]
[405860834,1771367449963,-3354.94878458,0.00016833,2]
[405860835,1771367449972,-1000.0,0.00016836,2]
[405860836,1771367449983,-312.33732778,0.00016849,2]
[405860837,1771367449993,-1000.0,0.00016854,2]
[405860838,1771367450003,-1000.0,0.00016855,2]
[405860839,1771367450014,-1000.0,0.00016864,2]
[405860840,1771367450024,-1000.0,0.00016866,2]
[405860841,1771367450034,-2378.0,0.00016876,2]
[405860842,1771367450044,-237.17,0.00016882,2]
[405860843,1771367450055,-2300.0,0.000169,6]
[405860844,1771367450065,-215.37,0.00016901,2]
[405860845,1771367450075,-996.0200937,0.00016901,2]
[405860846,1771367450366,-1000.0,0.00016902,2]
[405860847,1771367450377,-1000.0,0.00016912,2]
[405860848,1771367450390,-2378.0,0.00016931,2]
[405860849,1771367450401,-1500.0,0.0001694,2]
[405860850,1771367450411,-237.17,0.00016942,2]
[405860851,1771367450421,-1000.0,0.00016947,2]
[405860852,1771367450433,-1000.0,0.00016949,2]
[405860853,1771367450442,-1000.0,0.00016965,2]
[405860854,1771367450452,-215.36125356,0.00016981,2]
[405860855,1771367450463,-2378.0,0.00016986,2]
[405860856,1771367450474,-1514.80077227,0.0001699,2]
[405860857,1771367450484,-151.0,0.00016997,2]